{"text_format":"1","workbook":"xlsx","n_sheets":3,"sheets":["SO XX-XX-XX","Kategorie monitoringu","hide"],"not_rendered":{"charts":0,"images":0,"macros":1,"external_links":0,"defined_names":5,"comments":1,"pivot_tables":0},"unopened":[],"bounds":{"document_bytes":16777216,"sheet_cells":100000,"rows_first":2000,"rows_last":500,"rows_between":2000,"halvings":0,"cell_chars":16384,"cell_head_chars":4096},"cells_cut":0,"cells_raw":0,"read":"whole","date_system":"1900"}

{"sheet":"SO XX-XX-XX","index":0,"n_rows":86,"n_cols":12,"rows_kept":86,"cut":false,"hidden":false,"merged":[[2,10,2,11],[5,8,5,9],[5,5,5,7],[6,5,6,7],[7,1,7,3],[7,6,7,7],[2,3,2,4],[2,5,2,7],[0,1,0,2],[1,10,1,11],[9,10,10,11],[9,8,11,8],[9,9,11,9],[3,1,3,3],[4,8,4,9],[4,5,4,7],[6,1,6,3],[9,1,11,1],[9,7,11,7],[9,2,11,2],[9,3,11,3],[8,1,8,9],[6,8,6,9],[3,8,3,9],[9,6,11,6],[9,4,11,4],[7,8,7,9],[1,1,1,2],[1,8,1,9],[9,5,11,5],[1,3,1,7]]}
[null,"SOPS/PR/2024/04",null,null,null,"SOUPIS PRACÍ / ROZPOČET",null,null,null,null,null,{"$f":"D3","v":"SO XX-XX-XX"}]
[null,"Stavba:",null,"Název stavby",null,null,null,null,"CELKEM:",null,{"$f":"SUMIFS(L:L,B:B,\"SOUČET\")","v":0}]
[null,"SO/PS:",null,"SO XX-XX-XX",null,"Název SO/PS"]
[null,"Kategorie monitoringu:",null,null,"D.9.8",{"$f":"IF(E4=\"\",\"\",IF(E4=\"D.2.1.9\",\" Kabelovody, kolektory\",IF(E4=\"D.2.1.10\",\" Protihlukové objekty\",LOOKUP(E4,'Kategorie monitoringu'!A1:A35,'Kategorie monitoringu'!B1:B35))))","v":"SO 98-98 – Všeobecný objekt "},null,null,"Klasifikace SO/PS:"]
[null,"Stupeň dokumentace:",null,null,null,{"$f":"IF((E5=\"Stádium 2\"),\"  Dokumentace pro územní řízení - DUR\",(IF((E5=\"Stádium 3\"),\"  Projektová dokumentace\",\"\")))","v":""},null,null,"ISPROFIN:"]
[null,"Majetek:",null,null,null,null,null,null,"Označení (S-kód):"]
[null,"Zahájení realizace SO/PS:",null,null,null,"Zpracovatel:",null,null,"Cenová úroveň:"]
[null,"Ukončení realizace SO/PS.",null,null,null,"Obchodní název firmy/společnosti, v případě fyzické osoby podnikající  IČO","Titul Jméno Příjmení",null,"Datum zpracování:"]
[null,{"$f":"F2","v":0},null,null,null,null,null,null,null,null,{"$f":"$I$5","v":"ISPROFIN:"},{"$f":"K5","v":0}]
[null,"Poř. číslo","Kód položky","Varianta","Cenová soustava","Název položky/dílu","MJ","Množství","Jednotková hmotnost","Celková hmotnost","Cena"]
[]
[null,null,null,null,null,null,null,null,null,null,"Jednotková","Celkem"]
["D","Díl:",1,null,null,"Dokumentace stavby"]
["P",{"$f":"1+MAX($B$13:B13)","v":1},"VSEOB001",null,"R-položka","Dokumentace skutečného provedení stavby, geodetická část","KPL",1,null,{"$f":"IF(I14=0,\"\",I14*H14)","v":""},null,{"$f":"ROUND((ROUND(H14,3))*(ROUND(K14,2)),2)","v":0}]
["PP",null,null,null,null,"Vypracování vybrané části dokumentace skutečného provedení (DSPS)"]
["VV",null,null,null,null,"v předepsaném rozsahu a počtu dle VTP a ZTP"]
["TS",null,null,null,null,"Položka zahrnuje veškeré činnosti nezbytné k vypracování dokumentace skutečného provedení dle SOD na zhotovení stavby a v rozsahu vyhlášky č. 499/2006 Sb., v platném znění,  a dle požadavků VTP a ZTP. Jedná se o souhrn činností zahrnujících vyhotovení geodetické části dokumentace skutečného provedení stavby, která mimo jiné zahrnuje geodetické měření, zapracování všech změn během výstavby, geometrické plány pro zápis vlastnických a jiných věcných práv do katastru nemovitostí, výsledné měřící protokoly, aktuální údaje apod. Zhotovitel bude postupovat dle požadavků na obsahovou náležitost této části DSPS, která je uvedená v interním předpisu Objednatele - SŽ SM011 Dokumentace staveb Správy železnic, státní organizace. Položka zahrnuje odevzdání dokumentace v předepsaném počtu v listinné i elektronické formě uvedeném v ZTP a VTP."]
["P",{"$f":"1+MAX($B$13:B17)","v":2},"VSEOB002",null,"R-položka","Dokumentace skutečného provedení stavby, technická část","KPL",1,null,{"$f":"IF(I18=0,\"\",I18*H18)","v":""},null,{"$f":"ROUND((ROUND(H18,3))*(ROUND(K18,2)),2)","v":0}]
["PP",null,null,null,null,"Vypracování vybrané části dokumentace skutečného provedení (DSPS)"]
["VV",null,null,null,null,"v předepsaném rozsahu a počtu dle VTP a ZTP"]
["TS",null,null,null,null,"Položka zahrnuje veškeré činnosti nezbytné k vypracování dokumentace skutečného provedení dle SOD na zhotovení stavby a v rozsahu vyhlášky č. 499/2006 Sb. v platném znění a dle požadavků VTP a ZTP.  Jedná se o souhrn činností zahrnujících vyhotovení dokumentace skutečného provedení stavby v předepsaném počtu v listinné i elektronické formě. Zhotovitel bude postupovat dle požadavků na obsahovou náležitost této části DSPS, která je uvedená v interním předpisu Objednatele - SŽ SM011 Dokumentace staveb Správy železnic, státní organizace."]
["P",{"$f":"1+MAX($B$13:B21)","v":3},"VSEOB003",null,"R-položka","Dokumentace skutečného provedení stavby, dokladová část","KPL",1,null,{"$f":"IF(I22=0,\"\",I22*H22)","v":""},null,{"$f":"ROUND((ROUND(H22,3))*(ROUND(K22,2)),2)","v":0}]
["PP",null,null,null,null,"Vypracování vybrané části dokumentace skutečného provedení (DSPS)"]
["VV",null,null,null,null,"v předepsaném rozsahu a počtu dle VTP a ZTP"]
["TS",null,null,null,null,"Položka zahrnuje veškeré činnosti nezbytné k vypracování dokumentace skutečného provedení dle SOD na zhotovení stavby a v rozsahu vyhlášky č. 499/2006 Sb. v platném znění a dle požadavků VTP a ZTP.  Jedná se o souhrn činností zahrnujících doložení dokladů a podkladů pro předání stavby a její kolaudace v předepsané formě a počtu v listinné i elektronické formě. Zhotovitel bude postupovat dle požadavků na obsahovou náležitost této části DSPS, která je uvedená v interním předpisu Objednatele - SŽ SM011 Dokumentace staveb Správy železnic, státní organizace."]
["W","Součet","za  Díl",null,null,"Dokumentace stavby",null,null,null,null,null,{"$f":"SUM(L14:L25)","v":0}]
["D","Díl:",2,null,null,"Ostatní"]
["P",{"$f":"1+MAX($B$13:B27)","v":4},"VSEOB004",null,"R-položka","Osvědčení o shodě notifikovanou osobou ","KPL",null,null,{"$f":"IF(I28=0,\"\",I28*H28)","v":""},null,{"$f":"ROUND((ROUND(H28,3))*(ROUND(K28,2)),2)","v":0}]
["PP",null,null,null,null,"Zajištění vydání osvědčení o shodě notifikovanou osobou"]
["VV",null,null,null,null,"v předepsaném rozsahu a počtu dle VTP a ZTP"]
["TS",null,null,null,null,"Položka zahrnuje veškeré činnosti nezbytné k zajištění vydání platného prohlášení o ověření subsystému notifikovanou osobou ve stádiu realizace podle Směrnice Evropského parlamentu a Rady 2008/57/ES ze dne 17. června 2008 o interoperabilitě železničního systému, ve znění pozdějších předpisů  v souhrnu pro stavební objekty a provozní soubory. \nPoložka zahrnuje  všechny nezbytné práce, náklady a zařízení  včetně  všech doprav a pomocného materiálu nutných  pro uskutečnění dané činnosti."]
["P",{"$f":"1+MAX($B$13:B31)","v":5},"VSEOB005",null,"R-položka","Osvědčení o bezpečnosti před uvedením do provozu","KPL",null,null,{"$f":"IF(I32=0,\"\",I32*H32)","v":""},null,{"$f":"ROUND((ROUND(H32,3))*(ROUND(K32,2)),2)","v":0}]
["PP",null,null,null,null,"Zajištění vydání osvědčení o bezpečnosti před uvedením do provozu."]
["VV",null,null,null,null,"v předepsaném rozsahu a počtu dle VTP a ZTP"]
["TS",null,null,null,null,"Položka zahrnuje veškeré činnosti nezbytné k zajištění vydání zprávy o posouzení bezpečnosti dle prováděcího nařízení Komise (EU) č. 402/2013 ze dne 30. dubna 2013 o společné bezpečnostní metodě pro hodnocení a posuzování rizik a požadavky Drážního úřadu.\nPoložka zahrnuje  všechny nezbytné práce, náklady a zařízení  včetně  všech doprav a pomocného materiálu nutných  pro uskutečnění dané činnosti."]
["P",{"$f":"1+MAX($B$13:B35)","v":6},"VSEOB006",null,"R-položka","Geodetické práce v rámci geodetické vytyčovací sítě stavby","KPL",null,null,{"$f":"IF(I36=0,\"\",I36*H36)","v":""},null,{"$f":"ROUND((ROUND(H36,3))*(ROUND(K36,2)),2)","v":0}]
["PP",null,null,null,null,"Souhrn geodetických činností při zřizování a vedení bodů geodetické vytyčovací sítě stavby"]
["VV",null,null,null,null,"v předepsaném rozsahu a počtu dle VTP a ZTP"]
["TS",null,null,null,null,"Položka zahrnuje náklady na měřické činnosti v rámci zřizování a vedení bodů geodetické vytyčovací sítě stavby, především pak kontrolu a ověření vytyčovací sítě, měřické práce při zřízení, překládání, obnově a doplnění bodů vytyčovací sítě, včetně výpočetních a dokumentačních činností.\nZřízení a vedení bodů geodetických mikrosíti je součástí nákladů příslušných stavebních objektů, pro které je v projektu stanoveno jejich vybudování a není součástní nákladu této položky."]
["P",{"$f":"1+MAX($B$13:B39)","v":7},"VSEOB007",null,"R-položka","Stabilizace bodů geodetické vytyčovací sítě","KS",null,null,{"$f":"IF(I40=0,\"\",I40*H40)","v":""},null,{"$f":"ROUND((ROUND(H40,3))*(ROUND(K40,2)),2)","v":0}]
["PP",null,null,null,null,"Specifikace stabilizací bodů geodetické vytyčovací sítě stavby"]
["VV",null,null,null,null,"v předepsaném rozsahu a počtu dle VTP a ZTP - od stupně PDPS"]
["TS",null,null,null,null,"Položka zahrnuje veškeré činnosti související s prováděním fyzických stabilizací bodů vytyčovací sítě. Počet a druh stabilizací bodů při zřizování vytyčovací sítě vychází z návrhu vytyčovací sítě (ve stupni PDPS). Položka dále zahrnuje v rámci zřizování stabilizací náklady na dopravu stabilizací a materiálu, výkopové práce (strojní nebo ruční), montážní a stavební práce včetně terenních úprav, zbudování ochranných prvků (ochranné tyčové znaky, skruže, atd.).\nDo stabilizací geodetických vytyčovacích sítí je potřeba zahrnout i náklady na body v případě překládání, rušení a doplnění vytyčovací sítě vzhledem ke složitosti stavby, především pak v případě realizace bodů vytyčovacích sítí na neelektrizovaných tratích."]
["P",{"$f":"1+MAX($B$13:B43)","v":8},"VSEOB008",null,"R-položka","Hlukové měření pro účely realizace stavby","KPL",null,null,{"$f":"IF(I44=0,\"\",I44*H44)","v":""},null,{"$f":"ROUND((ROUND(H44,3))*(ROUND(K44,2)),2)","v":0}]
["PP",null,null,null,null,"popis položky"]
["VV",null,null,null,null,"v předepsaném rozsahu a počtu dle VTP a ZTP"]
["TS",null,null,null,null,"Položka zahrnuje náklady na  provedení všech hlukových měření a jejich vyhodnocení, která jsou nutná ke kolaudaci stavby a která dokumentují účinnost protihlukových opatření, případně jiných opatření, které dokládají vliv stavby na hlukové emise. Položka zahrnuje  všechny nezbytné práce, náklady a zařízení  včetně  všech doprav a pomocného materiálu nutných  pro uskutečnění měření."]
["P",{"$f":"1+MAX($B$13:B47)","v":9},"VSEOB009",null,"R-položka","Zajištění podmínek pro Supervizora","KPL",null,null,{"$f":"IF(I48=0,\"\",I48*H48)","v":""},null,{"$f":"ROUND((ROUND(H48,3))*(ROUND(K48,2)),2)","v":0}]
["PP",null,null,null,null,"zajištění podmínke pro výkon činnosti externího dohlížecího orgánu"]
["VV",null,null,null,null,"v předepsaném rozsahu a počtu dle VTP a ZTP"]
["TS",null,null,null,null,"Technická specifikace položky - DOPLNIT."]
["P",{"$f":"1+MAX($B$13:B51)","v":10},"VSEOB010",null,"R-položka","Ekologický dozor","KPL",null,null,{"$f":"IF(I52=0,\"\",I52*H52)","v":""},null,{"$f":"ROUND((ROUND(H52,3))*(ROUND(K52,2)),2)","v":0}]
["PP",null,null,null,null,"popis položky"]
["VV",null,null,null,null,"v předepsaném rozsahu a počtu dle VTP a ZTP"]
["TS",null,null,null,null,"Technická specifikace položky - DOPLNIT."]
["P",{"$f":"1+MAX($B$13:B55)","v":11},"VSEOB011",null,"R-položka","Pyrotechnický průzkum","KPL",null,null,{"$f":"IF(I56=0,\"\",I56*H56)","v":""},null,{"$f":"ROUND((ROUND(H56,3))*(ROUND(K56,2)),2)","v":0}]
["PP",null,null,null,null,"popis položky"]
["VV",null,null,null,null,"v předepsaném rozsahu a počtu dle VTP a ZTP"]
["TS",null,null,null,null,"Technická specifikace položky - DOPLNIT."]
["P",{"$f":"1+MAX($B$13:B59)","v":12},"VSEOB012",null,"R-položka","Korozní měření","KPL",null,null,{"$f":"IF(I60=0,\"\",I60*H60)","v":""},null,{"$f":"ROUND((ROUND(H60,3))*(ROUND(K60,2)),2)","v":0}]
["PP",null,null,null,null,"popis položky"]
["VV",null,null,null,null,"v předepsaném rozsahu a počtu dle VTP a ZTP"]
["TS",null,null,null,null,"Technická specifikace položky - DOPLNIT."]
["P",{"$f":"1+MAX($B$13:B63)","v":13},"VSEOB013",null,"R-položka","Aktualizace podkladů a konzultace dodavatele pro zajištění TracksideApproval","HOD",null,null,{"$f":"IF(I64=0,\"\",I64*H64)","v":""},null,{"$f":"ROUND((ROUND(H64,3))*(ROUND(K64,2)),2)","v":0}]
["PP",null,null,null,null,"popis položky"]
["VV",null,null,null,null,"v předepsaném rozsahu a počtu dle VTP a ZTP"]
["TS",null,null,null,null,"Položka obsahuje náklady na zpracování podkladů a konzultace dodavatele pro zajištění TracksideApproval"]
["W","Součet","za  Díl",null,null,"Ostatní",null,null,null,null,null,{"$f":"SUM(L28:L67)","v":0}]
["D","Díl:",3,null,null,"Informační model stavby"]
["P",{"$f":"1+MAX($B$13:B69)","v":14},"VSEOB014",null,"R-položka","Digitální model stavby ve stádiu realizace","KPL",1,null,{"$f":"IF(I70=0,\"\",I70*H70)","v":""},null,{"$f":"ROUND((ROUND(H70,3))*(ROUND(K70,2)),2)","v":0}]
["PP",null,null,null,null,"Digitální model skutečného provedení stavby"]
["VV",null,null,null,null,"v předepsaném rozsahu dle BIM Protokolu a jeho příloh"]
["TS",null,null,null,null,"Položka zahrnuje veškeré činnosti nezbytné k vytvoření Digitálního modelu stavby ve stádiu realizace po jejím ukončení stavebních prací, dle požadavků SOD a zejména BIM Protokolu včetně jeho příloh.  Jedná se o souhrn činností zahrnujících vytvoření Digitálního modelu stavby dle cílů definovaných BIM Protokolem, včetně všech souvisejících činností, zahrnujících projednání, kontrolu, schválení a převzetí Digitálního modelu po provedení a validace dat ze strany zhotovitele a následně ze strany SŽ."]
["P",{"$f":"1+MAX($B$13:B73)","v":15},"VSEOB015",null,"R-položka","Společné datové prostředí (CDE)","KPL",1,null,{"$f":"IF(I74=0,\"\",I74*H74)","v":""},null,{"$f":"ROUND((ROUND(H74,3))*(ROUND(K74,2)),2)","v":0}]
["PP",null,null,null,null,"popis položky"]
["VV",null,null,null,null,"v předepsaném rozsahu dle BIM Protokolu a jeho příloh"]
["TS",null,null,null,null,"Společné datové prostředí (CDE) pro zřízení a provozování CDE v rozsahu stanoveném BIM Protokolem včetně Licence pro Projektový tým, včetně všech souvisejících činností."]
["P",{"$f":"1+MAX($B$13:B77)","v":16},"VSEOB016",null,"R-položka","Licence CDE","KS",10,null,{"$f":"IF(I78=0,\"\",I78*H78)","v":""},null,{"$f":"ROUND((ROUND(H78,3))*(ROUND(K78,2)),2)","v":0}]
["PP",null,null,null,null,"Licence pro Objednatele pro prác ve společném datovém prostředí (CDE)"]
["VV",null,null,null,null,"v předepsaném rozsahu dle BIM Protokolu a jeho příloh"]
["TS",null,null,null,null,"Licence k CDE pro účely Objednatele dle BIM Protokolu včetně proškolení vybraných zaměstnanců Objednatele tak, aby bylo možné se orientovat v dokumentech předávaných ze strany Dodavatele včetně výkonu průběžné kontroly provádění Díla a plnění dílčích termínů. Vypracování jednoduché verze manuálu pro práci v CDE a jeho předání 3 pracovní dny před zahájením školení."]
["P",{"$f":"1+MAX($B$13:B81)","v":17},"VSEOB017",null,"R-položka","Závěrečná hodnotící zpráva","KPL",1,null,{"$f":"IF(I82=0,\"\",I82*H82)","v":""},null,{"$f":"ROUND((ROUND(H82,3))*(ROUND(K82,2)),2)","v":0}]
["PP",null,null,null,null,"popis položky"]
["VV",null,null,null,null,"v předepsaném rozsahu dle BIM Protokolu a jeho příloh"]
["TS",null,null,null,null,"Vypracování Závěrečné hodnotící zprávy v rozsahu (dle BIM Protokolu včetně jeho příloh)"]
["W","Součet","za  Díl",null,null,"Informační model stavby",null,null,null,null,null,{"$f":"SUM(L70:L85)","v":0}]

{"sheet":"Kategorie monitoringu","index":1,"n_rows":35,"n_cols":2,"rows_kept":35,"cut":false,"hidden":false,"merged":[]}
["D.1.1"," Zabezpečovací zařízení"]
["D.1.2"," Sdělovací zařízení"]
["D.1.3"," Silnoproudá technologie včetně DŘT"]
["D.1.4"," Ostatní technologická zařízení"]
["D.2.1.1.0"," Kolejový svršek"]
["D.2.1.1.1"," Kolejový spodek "]
["D.2.1.2"," Nástupiště"]
["D.2.1.3"," Přejezdy a přechody"]
["D.2.1.4"," Mosty, propustky, zdi"]
["D.2.1.5"," Ostatní inženýrské objekty"]
["D.2.1.6"," Potrubní vedení"]
["D.2.1.7"," Tunely"]
["D.2.1.8"," Pozemní komunikace"]
["D.2.1.9"," Kabelovody, kolektory"]
["D.2.1.10"," Protihlukové objekty"]
["D.2.2.1"," Pozemní stavební objekty budov"]
["D.2.2.2"," Zastřešení nástupišť, přístřešky na nástupištích"]
["D.2.2.3"," Individuální protihluková opatření"]
["D.2.2.4"," Orientační systém"]
["D.2.2.5"," Demolice"]
["D.2.2.6"," Drobná architektura a oplocení"]
["D.2.3.1"," Trakční vedení"]
["D.2.3.2"," Napájecí stanice - stavební část"]
["D.2.3.3"," Spínací stanice - stavební část"]
["D.2.3.4"," Ohřev výhybek (elektrický, plynový)"]
["D.2.3.5"," Elektrické předtápěcí zařízení"]
["D.2.3.6"," Rozvody VN, NN, osvětlení a dálkové ovládání odpojovačů"]
["D.2.3.7"," Ukolejnění kovových konstrukcí"]
["D.2.3.8"," Vnější uzemnění"]
["D.2.3.9"," Ostatní kabelizace"]
["D.2.4.1"," Příprava území a kácení"]
["D.2.4.2"," Náhradní výsadba"]
["D.2.4.3"," Zabezpečení veřejných zájmů"]
["D.9.8","SO 98-98 – Všeobecný objekt "]
["D.9.9","SO 90-90 – Odpady"]

{"sheet":"hide","index":2,"n_rows":8,"n_cols":12,"rows_kept":8,"cut":false,"hidden":true,"merged":[]}
["P",null,null,null,null,null,null,null,null,{"$f":"IF(I1=0,\"\",I1*H1)","v":""},null,{"$f":"ROUND((ROUND(H1,3))*(ROUND(K1,2)),2)","v":0}]
["PP"]
["VV"]
["TS"]
[]
["W","Saoučet za díl:"]
[]
["D","Díl:"]